[Event "*** SCC Grand Prix: Titled Tuesday Blitz"]
[Site "Chess.com"]
[Date "2020.07.21"]
[Round "2"]
[White "KingCrusher275"]
[Black "sm_sharon"]
[Result "1-0"]
[WhiteElo "2378"]
[BlackElo "2053"]
[TimeControl "180+1"]
[EndTime "10:17:28 PDT"]
[Termination "KingCrusher275 won on time"]

1. d4 {[%clk 0:02:59.7]} 1... Nf6 {[%clk 0:02:59.1]} 2. c4 {[%clk 0:02:59.9]}
2... g6 {[%clk 0:03:00]} 3. Nc3 {[%clk 0:03:00]} 3... Bg7 {[%clk 0:03:00.9]} 4.
e4 {[%clk 0:02:59.8]} 4... d6 {[%clk 0:03:01.8]} 5. h3 {[%clk 0:03:00]} 5... O-O
{[%clk 0:03:02.2]} 6. Nf3 {[%clk 0:03:00.1]} 6... Nc6 {[%clk 0:03:02.6]} 7. d5
{[%clk 0:02:59.2]} 7... Nb8 {[%clk 0:03:02.1]} 8. Be2 {[%clk 0:02:56.2]} 8... e6
{[%clk 0:03:01.6]} 9. O-O {[%clk 0:02:54.7]} 9... exd5 {[%clk 0:03:00.8]} 10.
exd5 {[%clk 0:02:53.6]} 10... Nbd7 {[%clk 0:02:54.7]} 11. Bg5 {[%clk 0:02:50.3]}
11... h6 {[%clk 0:02:54.6]} 12. Bh4 {[%clk 0:02:49.9]} 12... a5 {[%clk
0:02:52.5]} 13. Qd2 {[%clk 0:02:41.6]} 13... Nc5 {[%clk 0:02:49.3]} 14. Nd4
{[%clk 0:02:29.5]} 14... Re8 {[%clk 0:02:32.9]} 15. Bf3 {[%clk 0:02:26.9]} 15...
Bd7 {[%clk 0:02:22.6]} 16. Rfe1 {[%clk 0:02:25.1]} 16... Re5 {[%clk 0:02:01.2]}
17. Ndb5 {[%clk 0:02:11.5]} 17... Bxb5 {[%clk 0:01:27.8]} 18. Nxb5 {[%clk
0:02:09.6]} 18... Kh7 {[%clk 0:01:22.5]} 19. Bg3 {[%clk 0:01:59.9]} 19... Rxe1+
{[%clk 0:01:20.9]} 20. Rxe1 {[%clk 0:02:00.8]} 20... Qd7 {[%clk 0:01:20.6]} 21.
b3 {[%clk 0:01:45.3]} 21... b6 {[%clk 0:01:18.8]} 22. Bh4 {[%clk 0:01:40.5]}
22... Re8 {[%clk 0:01:15.3]} 23. Rxe8 {[%clk 0:01:39]} 23... Nxe8 {[%clk
0:01:14.3]} 24. Qe3 {[%clk 0:01:28.4]} 24... Be5 {[%clk 0:01:05.1]} 25. Bd1
{[%clk 0:00:45.7]} 25... Qf5 {[%clk 0:00:52.8]} 26. Qe2 {[%clk 0:00:37.8]} 26...
Qb1 {[%clk 0:00:18.4]} 27. f3 {[%clk 0:00:33.9]} 27... Nd3 {[%clk 0:00:08.1]}
28. Qc2 {[%clk 0:00:28.7]} 28... Qxc2 {[%clk 0:00:06.5]} 29. Bxc2 {[%clk
0:00:29.6]} 29... Nf4 {[%clk 0:00:06.5]} 30. Kf2 {[%clk 0:00:27]} 30... f6
{[%clk 0:00:04.5]} 31. Kf1 {[%clk 0:00:23]} 31... Kg7 {[%clk 0:00:04.4]} 32. Be1
{[%clk 0:00:21.2]} 32... g5 {[%clk 0:00:04.4]} 33. Bf5 {[%clk 0:00:19.8]} 33...
Kf7 {[%clk 0:00:03.3]} 34. g3 {[%clk 0:00:20.1]} 1-0

[Event "*** SCC Grand Prix: Titled Tuesday Blitz"]
[Site "Chess.com"]
[Date "2020.07.21"]
[Round "2"]
[White "Lagmantr"]
[Black "UKR_Master"]
[Result "1-0"]
[WhiteElo "2639"]
[BlackElo "2337"]
[TimeControl "180+1"]
[EndTime "10:17:30 PDT"]
[Termination "Lagmantr won by resignation"]

1. Nf3 {[%clk 0:03:00.9]} 1... Nf6 {[%clk 0:02:58.5]} 2. c4 {[%clk 0:03:01.1]}
2... c5 {[%clk 0:02:56.6]} 3. g3 {[%clk 0:03:01.5]} 3... b6 {[%clk 0:02:56.6]}
4. Bg2 {[%clk 0:03:01.7]} 4... Bb7 {[%clk 0:02:57.3]} 5. O-O {[%clk 0:03:02.1]}
5... g6 {[%clk 0:02:57.8]} 6. b3 {[%clk 0:03:02.2]} 6... Bg7 {[%clk 0:02:57.8]}
7. Bb2 {[%clk 0:03:02.6]} 7... O-O {[%clk 0:02:58.5]} 8. d3 {[%clk 0:03:02.9]}
8... d5 {[%clk 0:02:57.6]} 9. Nc3 {[%clk 0:02:59.9]} 9... d4 {[%clk 0:02:57.1]}
10. Na4 {[%clk 0:02:56.5]} 10... Nbd7 {[%clk 0:02:55.1]} 11. e3 {[%clk
0:02:42.9]} 11... e5 {[%clk 0:02:54.2]} 12. b4 {[%clk 0:02:38.9]} 12... Re8
{[%clk 0:02:36.5]} 13. bxc5 {[%clk 0:02:33.3]} 13... bxc5 {[%clk 0:02:36.6]} 14.
Rb1 {[%clk 0:02:32.6]} 14... Bc6 {[%clk 0:02:28.5]} 15. Bc1 {[%clk 0:01:46.8]}
15... Qa5 {[%clk 0:02:24.2]} 16. Nb2 {[%clk 0:01:46.6]} 16... Rab8 {[%clk
0:02:01.2]} 17. a4 {[%clk 0:01:27.9]} 17... Qa6 {[%clk 0:01:24.2]} 18. Re1
{[%clk 0:01:12.6]} 18... e4 {[%clk 0:01:22.3]} 19. dxe4 {[%clk 0:01:08.6]} 19...
Nxe4 {[%clk 0:01:22.5]} 20. Qc2 {[%clk 0:00:52.5]} 20... Nc3 {[%clk 0:01:05.5]}
21. Ra1 {[%clk 0:00:51.6]} 21... Be4 {[%clk 0:00:55.2]} 22. Qd2 {[%clk
0:00:47.8]} 22... Nb6 {[%clk 0:00:37.3]} 23. exd4 {[%clk 0:00:41.2]} 23... cxd4
{[%clk 0:00:37.1]} 24. Nxd4 {[%clk 0:00:32.4]} 24... Bxg2 {[%clk 0:00:34.4]} 25.
Rxe8+ {[%clk 0:00:32]} 25... Rxe8 {[%clk 0:00:33.4]} 26. Kxg2 {[%clk 0:00:32.9]}
26... Qb7+ {[%clk 0:00:32.5]} 27. Nf3 {[%clk 0:00:30.8]} 27... Ne4 {[%clk
0:00:29.4]} 28. Qe1 {[%clk 0:00:21.4]} 28... Nd6 {[%clk 0:00:26]} 29. Qb4 {[%clk
0:00:19.2]} 29... Nf5 {[%clk 0:00:20.9]} 30. c5 {[%clk 0:00:18.6]} 30... Nd4
{[%clk 0:00:20.7]} 31. Ra3 {[%clk 0:00:14.8]} 31... Bf8 {[%clk 0:00:19]} 32.
Qxd4 {[%clk 0:00:13.5]} 32... Re4 {[%clk 0:00:18]} 33. Qd8 {[%clk 0:00:11.8]}
33... Nd5 {[%clk 0:00:17.2]} 34. Bh6 {[%clk 0:00:11.2]} 1-0

[Event "*** SCC Grand Prix: Titled Tuesday Blitz"]
[Site "Chess.com"]
[Date "2020.07.21"]
[Round "2"]
[White "petroniy_arbitr"]
[Black "26andrej26"]
[Result "0-1"]
[WhiteElo "2273"]
[BlackElo "2523"]
[TimeControl "180+1"]
[EndTime "10:17:30 PDT"]
[Termination "26andrej26 won on time"]

1. d4 {[%clk 0:03:00.9]} 1... Nf6 {[%clk 0:02:44.2]} 2. c4 {[%clk 0:03:00.4]}
2... g6 {[%clk 0:02:43.9]} 3. Nc3 {[%clk 0:03:00.4]} 3... Bg7 {[%clk 0:02:43.1]}
4. e4 {[%clk 0:03:00.4]} 4... d6 {[%clk 0:02:44]} 5. Be2 {[%clk 0:03:00.6]} 5...
O-O {[%clk 0:02:42.9]} 6. Nf3 {[%clk 0:03:01.1]} 6... e5 {[%clk 0:02:42.9]} 7.
O-O {[%clk 0:03:01.2]} 7... Nc6 {[%clk 0:02:43]} 8. d5 {[%clk 0:03:01.6]} 8...
Ne7 {[%clk 0:02:43.5]} 9. b4 {[%clk 0:03:02.1]} 9... a5 {[%clk 0:02:43.4]} 10.
bxa5 {[%clk 0:02:59]} 10... c5 {[%clk 0:02:42.4]} 11. Rb1 {[%clk 0:02:46.4]}
11... Rxa5 {[%clk 0:02:38]} 12. Qc2 {[%clk 0:02:44.3]} 12... Ra6 {[%clk
0:02:35.8]} 13. Nb5 {[%clk 0:02:41.9]} 13... Nxe4 {[%clk 0:02:28.4]} 14. Bd3
{[%clk 0:02:14]} 14... Nf6 {[%clk 0:02:25.7]} 15. Bd2 {[%clk 0:02:14.3]} 15...
e4 {[%clk 0:02:23.3]} 16. Bxe4 {[%clk 0:02:06.9]} 16... Nxe4 {[%clk 0:02:24.2]}
17. Qxe4 {[%clk 0:02:06.8]} 17... Bf5 {[%clk 0:02:24.8]} 18. Qf4 {[%clk
0:01:46.6]} 18... Bxb1 {[%clk 0:02:23.3]} 19. Rxb1 {[%clk 0:01:47.2]} 19... Nf5
{[%clk 0:02:20]} 20. h3 {[%clk 0:01:40.4]} 20... Bh6 {[%clk 0:02:18.2]} 21. Qg4
{[%clk 0:01:36.3]} 21... Bxd2 {[%clk 0:02:15.1]} 22. Nxd2 {[%clk 0:01:36.8]}
22... Rxa2 {[%clk 0:02:15.5]} 23. Ne4 {[%clk 0:01:35.9]} 23... Nd4 {[%clk
0:01:41.4]} 24. Nexd6 {[%clk 0:01:20.9]} 24... Nxb5 {[%clk 0:01:25.5]} 25. Nxb5
{[%clk 0:01:20.4]} 25... Qf6 {[%clk 0:01:21.4]} 26. Qg3 {[%clk 0:01:11.5]} 26...
Rc2 {[%clk 0:01:00.5]} 27. Nc7 {[%clk 0:00:59.6]} 27... Rxc4 {[%clk 0:00:48]}
28. Rxb7 {[%clk 0:00:59.7]} 28... Rc3 {[%clk 0:00:43.5]} 29. Qg4 {[%clk
0:00:47]} 29... Qd6 {[%clk 0:00:38.7]} 30. g3 {[%clk 0:00:40.4]} 30... Rd3
{[%clk 0:00:33.3]} 31. Qc4 {[%clk 0:00:35.4]} 31... Rd4 {[%clk 0:00:32.4]} 32.
Qc2 {[%clk 0:00:30]} 32... c4 {[%clk 0:00:27.2]} 33. Nb5 {[%clk 0:00:27.2]}
33... Qxd5 {[%clk 0:00:27.5]} 34. Nxd4 {[%clk 0:00:23.8]} 34... Qxb7 {[%clk
0:00:27.4]} 35. Qxc4 {[%clk 0:00:23.8]} 35... Rc8 {[%clk 0:00:26.7]} 36. Qf1
{[%clk 0:00:17.2]} 36... Qb2 {[%clk 0:00:26.7]} 37. Ne2 {[%clk 0:00:16.2]} 37...
Rc2 {[%clk 0:00:25.5]} 0-1

[Event "*** SCC Grand Prix: Titled Tuesday Blitz"]
[Site "Chess.com"]
[Date "2020.07.21"]
[Round "2"]
[White "Sibelephant"]
[Black "AlexOstrovskiy"]
[Result "1-0"]
[WhiteElo "3108"]
[BlackElo "2601"]
[TimeControl "180+1"]
[EndTime "10:17:31 PDT"]
[Termination "Sibelephant won by resignation"]

1. c4 {[%clk 0:02:59.9]} 1... b6 {[%clk 0:02:56.4]} 2. g3 {[%clk 0:02:56.2]}
2... Bb7 {[%clk 0:02:54.7]} 3. Nf3 {[%clk 0:02:56.6]} 3... Bxf3 {[%clk
0:02:55.3]} 4. exf3 {[%clk 0:02:56.7]} 4... c5 {[%clk 0:02:55.9]} 5. d4 {[%clk
0:02:54.2]} 5... Nc6 {[%clk 0:02:52.2]} 6. d5 {[%clk 0:02:45.1]} 6... Nd4 {[%clk
0:02:50.8]} 7. Be3 {[%clk 0:02:45.4]} 7... e5 {[%clk 0:02:48.4]} 8. dxe6 {[%clk
0:02:27.4]} 8... dxe6 {[%clk 0:02:47.3]} 9. Bg2 {[%clk 0:02:13]} 9... Ne7 {[%clk
0:02:37.9]} 10. f4 {[%clk 0:02:08.9]} 10... Rc8 {[%clk 0:02:36.6]} 11. Bxd4
{[%clk 0:01:56.5]} 11... Qxd4 {[%clk 0:02:11.5]} 12. Na3 {[%clk 0:01:27]} 12...
Qxd1+ {[%clk 0:01:26.8]} 13. Rxd1 {[%clk 0:01:26.4]} 13... Nf5 {[%clk
0:01:27.7]} 14. Nb5 {[%clk 0:01:19.6]} 14... Nd4 {[%clk 0:01:10.8]} 15. Nxa7
{[%clk 0:01:15.4]} 15... Rd8 {[%clk 0:01:10.4]} 16. O-O {[%clk 0:00:59.3]} 16...
g6 {[%clk 0:01:00.8]} 17. Nc6 {[%clk 0:00:50.7]} 17... Nxc6 {[%clk 0:00:52.8]}
18. Bxc6+ {[%clk 0:00:50]} 18... Ke7 {[%clk 0:00:53]} 19. Rxd8 {[%clk 0:00:50]}
19... Kxd8 {[%clk 0:00:53.9]} 20. Rd1+ {[%clk 0:00:50.5]} 20... Kc7 {[%clk
0:00:50.1]} 21. Be8 {[%clk 0:00:50.6]} 21... Bg7 {[%clk 0:00:50.2]} 22. Rd7+
{[%clk 0:00:39.5]} 22... Kc8 {[%clk 0:00:40.8]} 23. Rxf7 {[%clk 0:00:39.4]}
23... Bxb2 {[%clk 0:00:39.7]} 24. Bd7+ {[%clk 0:00:39.7]} 24... Kb8 {[%clk
0:00:20]} 25. Bxe6 {[%clk 0:00:39.8]} 25... Re8 {[%clk 0:00:20]} 26. Bd5 {[%clk
0:00:36.6]} 26... Re2 {[%clk 0:00:16]} 27. Rxh7 {[%clk 0:00:34.3]} 27... Bd4
{[%clk 0:00:15.4]} 28. Rb7+ {[%clk 0:00:34.8]} 28... Kc8 {[%clk 0:00:15.4]} 29.
Rxb6 {[%clk 0:00:35.5]} 29... Rxf2 {[%clk 0:00:15]} 30. Kh1 {[%clk 0:00:34.3]}
30... Rxa2 {[%clk 0:00:05.5]} 31. Rxg6 {[%clk 0:00:34]} 31... Ra1+ {[%clk
0:00:05.7]} 32. Kg2 {[%clk 0:00:34.4]} 32... Ra2+ {[%clk 0:00:06.6]} 33. Kh3
{[%clk 0:00:35]} 33... Bg1 {[%clk 0:00:06.8]} 34. f5 {[%clk 0:00:28.8]} 34...
Rxh2+ {[%clk 0:00:05.7]} 35. Kg4 {[%clk 0:00:29.4]} 35... Bd4 {[%clk 0:00:06.6]}
36. f6 {[%clk 0:00:26.1]} 36... Rf2 {[%clk 0:00:06.4]} 37. f7 {[%clk 0:00:26.6]}
37... Kd7 {[%clk 0:00:05.9]} 38. Rg8 {[%clk 0:00:26.6]} 1-0

[Event "*** SCC Grand Prix: Titled Tuesday Blitz"]
[Site "Chess.com"]
[Date "2020.07.21"]
[Round "2"]
[White "Dedic8"]
[Black "Brave_spirit12"]
[Result "1-0"]
[WhiteElo "2774"]
[BlackElo "2512"]
[TimeControl "180+1"]
[EndTime "10:17:31 PDT"]
[Termination "Dedic8 won by resignation"]

1. e4 {[%clk 0:03:00.9]} 1... e6 {[%clk 0:02:59.3]} 2. d4 {[%clk 0:03:00.7]}
2... d5 {[%clk 0:03:00.2]} 3. Nc3 {[%clk 0:03:01.3]} 3... Nf6 {[%clk 0:02:59.4]}
4. Bg5 {[%clk 0:02:59.8]} 4... Be7 {[%clk 0:02:59.2]} 5. e5 {[%clk 0:02:59.2]}
5... Nfd7 {[%clk 0:02:59.4]} 6. h4 {[%clk 0:02:59.9]} 6... h6 {[%clk 0:02:58.3]}
7. Bxe7 {[%clk 0:02:58.7]} 7... Qxe7 {[%clk 0:02:59.2]} 8. Qd2 {[%clk
0:02:58.4]} 8... a6 {[%clk 0:02:59.1]} 9. O-O-O {[%clk 0:02:56.8]} 9... c5
{[%clk 0:03:00]} 10. f4 {[%clk 0:02:55.1]} 10... Nc6 {[%clk 0:02:59.8]} 11. Nf3
{[%clk 0:02:54.8]} 11... b5 {[%clk 0:02:59.5]} 12. dxc5 {[%clk 0:02:54]} 12...
Nxc5 {[%clk 0:03:00.4]} 13. g4 {[%clk 0:02:49.2]} 13... Bb7 {[%clk 0:02:59.4]}
14. Bg2 {[%clk 0:02:46.5]} 14... Rc8 {[%clk 0:02:57.7]} 15. Kb1 {[%clk
0:02:46.4]} 15... b4 {[%clk 0:02:56.6]} 16. Ne2 {[%clk 0:02:46.4]} 16... Ne4
{[%clk 0:02:56.9]} 17. Qe1 {[%clk 0:02:47.1]} 17... Qc5 {[%clk 0:02:55.6]} 18.
Nfd4 {[%clk 0:02:41.2]} 18... Nxd4 {[%clk 0:02:55.5]} 19. Nxd4 {[%clk
0:02:41.4]} 19... Nc3+ {[%clk 0:02:20.2]} 20. bxc3 {[%clk 0:02:34.6]} 20... bxc3
{[%clk 0:02:21.1]} 21. Ka1 {[%clk 0:02:23.3]} 21... Qa3 {[%clk 0:01:56.7]} 22.
Rb1 {[%clk 0:02:22.5]} 22... Rc4 {[%clk 0:01:49.6]} 23. Rxb7 {[%clk 0:02:19.8]}
23... Rxd4 {[%clk 0:01:29.8]} 24. Rb3 {[%clk 0:02:09.7]} 24... Qa4 {[%clk
0:01:26.1]} 25. Qxc3 {[%clk 0:01:59.9]} 25... Rc4 {[%clk 0:01:20.9]} 26. Qb2
{[%clk 0:01:45.6]} 26... O-O {[%clk 0:01:18.7]} 27. g5 {[%clk 0:01:34.6]} 27...
Rfc8 {[%clk 0:01:16.2]} 28. Rc1 {[%clk 0:01:25.5]} 28... hxg5 {[%clk 0:01:15.8]}
29. hxg5 {[%clk 0:01:22.6]} 29... Rxf4 {[%clk 0:01:15.5]} 30. Rb8 {[%clk
0:01:22.6]} 30... Rxb8 {[%clk 0:01:06.5]} 31. Qxb8+ {[%clk 0:01:22.2]} 31... Kh7
{[%clk 0:01:07.4]} 32. Bf1 {[%clk 0:00:57.7]} 32... Qd4+ {[%clk 0:00:39.5]} 33.
Qb2 {[%clk 0:00:57.3]} 33... Qe3 {[%clk 0:00:26.1]} 34. Bd3+ {[%clk 0:00:57.1]}
34... g6 {[%clk 0:00:26.6]} 35. Rh1+ {[%clk 0:00:42.7]} 35... Kg7 {[%clk
0:00:25.7]} 36. a3 {[%clk 0:00:43.3]} 36... Rg4 {[%clk 0:00:20.3]} 37. Qb8
{[%clk 0:00:35.5]} 37... Qd4+ {[%clk 0:00:16.8]} 38. Ka2 {[%clk 0:00:34]} 38...
Rh4 {[%clk 0:00:16.1]} 39. Rxh4 {[%clk 0:00:34]} 39... Qxh4 {[%clk 0:00:17]} 40.
Qd8 {[%clk 0:00:34.5]} 40... Qf4 {[%clk 0:00:09.7]} 41. Qf6+ {[%clk 0:00:33.5]}
41... Qxf6 {[%clk 0:00:10.1]} 42. exf6+ {[%clk 0:00:34.1]} 42... Kf8 {[%clk
0:00:10.5]} 43. Bxa6 {[%clk 0:00:35]} 43... e5 {[%clk 0:00:11.4]} 44. Kb3 {[%clk
0:00:34.7]} 44... d4 {[%clk 0:00:12.3]} 45. Kc4 {[%clk 0:00:35]} 1-0

[Event "*** SCC Grand Prix: Titled Tuesday Blitz"]
[Site "Chess.com"]
[Date "2020.07.21"]
[Round "2"]
[White "ehrenfeld"]
[Black "nrvignesh"]
[Result "1-0"]
[WhiteElo "2532"]
[BlackElo "2779"]
[TimeControl "180+1"]
[EndTime "10:17:34 PDT"]
[Termination "ehrenfeld won by resignation"]

1. e4 {[%clk 0:03:00.9]} 1... d6 {[%clk 0:02:58.4]} 2. d4 {[%clk 0:03:00.5]}
2... g6 {[%clk 0:02:57.8]} 3. Nc3 {[%clk 0:03:00.5]} 3... Bg7 {[%clk 0:02:58.1]}
4. Be3 {[%clk 0:03:00.4]} 4... c6 {[%clk 0:02:58]} 5. a4 {[%clk 0:02:57.7]} 5...
Nd7 {[%clk 0:02:57.3]} 6. h3 {[%clk 0:02:55.7]} 6... a5 {[%clk 0:02:56.6]} 7. g4
{[%clk 0:02:54.9]} 7... h5 {[%clk 0:02:55.5]} 8. g5 {[%clk 0:02:54.6]} 8... e5
{[%clk 0:02:55.1]} 9. Nge2 {[%clk 0:02:42.2]} 9... Ne7 {[%clk 0:02:53.9]} 10.
Bg2 {[%clk 0:02:39.8]} 10... O-O {[%clk 0:02:53.2]} 11. O-O {[%clk 0:02:38.7]}
11... exd4 {[%clk 0:02:53]} 12. Nxd4 {[%clk 0:02:38]} 12... Nb6 {[%clk
0:02:52.8]} 13. b3 {[%clk 0:02:36.2]} 13... d5 {[%clk 0:02:51.3]} 14. Nde2
{[%clk 0:02:03.8]} 14... Be6 {[%clk 0:02:44.5]} 15. Qd2 {[%clk 0:02:00.8]} 15...
Qc7 {[%clk 0:02:40.3]} 16. Rad1 {[%clk 0:01:32.7]} 16... Rad8 {[%clk 0:02:34.6]}
17. Qc1 {[%clk 0:01:26.5]} 17... dxe4 {[%clk 0:02:29.4]} 18. Nxe4 {[%clk
0:01:21.2]} 18... Nbd5 {[%clk 0:02:26.5]} 19. Bc5 {[%clk 0:01:04.9]} 19... b6
{[%clk 0:02:24]} 20. Ba3 {[%clk 0:00:51.9]} 20... c5 {[%clk 0:02:23.2]} 21. Bb2
{[%clk 0:00:47.7]} 21... Nf5 {[%clk 0:02:22.3]} 22. Bxg7 {[%clk 0:00:46.4]}
22... Kxg7 {[%clk 0:02:22.2]} 23. Qb2+ {[%clk 0:00:45.6]} 23... f6 {[%clk
0:02:00.6]} 24. c4 {[%clk 0:00:43.3]} 24... Nf4 {[%clk 0:01:53.3]} 25. gxf6+
{[%clk 0:00:40.5]} 25... Kg8 {[%clk 0:01:50.8]} 26. Nxf4 {[%clk 0:00:33.1]}
26... Qxf4 {[%clk 0:01:20.2]} 27. f7+ {[%clk 0:00:22.3]} 27... Kh7 {[%clk
0:01:03.8]} 28. Rxd8 {[%clk 0:00:19.5]} 28... Rxd8 {[%clk 0:01:01.2]} 29. Qf6
{[%clk 0:00:19]} 29... Rf8 {[%clk 0:00:51.7]} 30. Ng5+ {[%clk 0:00:19]} 30...
Qxg5 {[%clk 0:00:48.2]} 31. Qxg5 {[%clk 0:00:18.6]} 31... Rxf7 {[%clk
0:00:48.4]} 32. Re1 {[%clk 0:00:18.3]} 32... Nd4 {[%clk 0:00:48.3]} 33. Qd8
{[%clk 0:00:14.8]} 33... Bxh3 {[%clk 0:00:39.1]} 34. Re7 {[%clk 0:00:13.4]}
34... Be6 {[%clk 0:00:34.3]} 35. Rxf7+ {[%clk 0:00:12.4]} 35... Bxf7 {[%clk
0:00:35.2]} 36. Qxb6 {[%clk 0:00:12]} 36... h4 {[%clk 0:00:32.5]} 37. Qxc5
{[%clk 0:00:11.5]} 37... Nxb3 {[%clk 0:00:32.5]} 38. Qb6 {[%clk 0:00:11.1]}
38... h3 {[%clk 0:00:27.9]} 39. Qxb3 {[%clk 0:00:09.9]} 39... hxg2 {[%clk
0:00:27.7]} 40. Kxg2 {[%clk 0:00:09.6]} 40... Kg7 {[%clk 0:00:27.6]} 41. Qc3+
{[%clk 0:00:08.9]} 1-0

[Event "*** SCC Grand Prix: Titled Tuesday Blitz"]
[Site "Chess.com"]
[Date "2020.07.21"]
[Round "2"]
[White "Iball95"]
[Black "bratkoo"]
[Result "1-0"]
[WhiteElo "2701"]
[BlackElo "2472"]
[TimeControl "180+1"]
[EndTime "10:17:35 PDT"]
[Termination "Iball95 won by checkmate"]

1. e4 {[%clk 0:03:00]} 1... e6 {[%clk 0:03:00.3]} 2. d4 {[%clk 0:02:58.9]} 2...
d5 {[%clk 0:02:59.4]} 3. Nd2 {[%clk 0:02:59.1]} 3... c5 {[%clk 0:02:58.6]} 4.
Ngf3 {[%clk 0:02:58.7]} 4... Nc6 {[%clk 0:02:57.7]} 5. exd5 {[%clk 0:02:55.6]}
5... exd5 {[%clk 0:02:57.7]} 6. Bb5 {[%clk 0:02:55.4]} 6... Bd6 {[%clk
0:02:50.5]} 7. O-O {[%clk 0:02:54.7]} 7... Ne7 {[%clk 0:02:50.2]} 8. dxc5 {[%clk
0:02:44.7]} 8... Bxc5 {[%clk 0:02:50.1]} 9. Nb3 {[%clk 0:02:45.3]} 9... Bb6
{[%clk 0:02:50.8]} 10. h3 {[%clk 0:02:44.6]} 10... O-O {[%clk 0:02:51]} 11. c3
{[%clk 0:02:44.4]} 11... Qd6 {[%clk 0:02:51]} 12. Nbd4 {[%clk 0:02:41.6]} 12...
Ng6 {[%clk 0:02:43.7]} 13. Re1 {[%clk 0:02:36.6]} 13... Bd7 {[%clk 0:02:30.2]}
14. Bd3 {[%clk 0:02:33.1]} 14... Nf4 {[%clk 0:01:48.8]} 15. Bc2 {[%clk
0:02:20.7]} 15... Rae8 {[%clk 0:01:33.5]} 16. Be3 {[%clk 0:02:15.5]} 16... Nxd4
{[%clk 0:01:20.5]} 17. Nxd4 {[%clk 0:02:04]} 17... Bc7 {[%clk 0:01:18.7]} 18.
Qf3 {[%clk 0:01:48.5]} 18... Ne6 {[%clk 0:01:01.5]} 19. g3 {[%clk 0:01:41.1]}
19... Nxd4 {[%clk 0:00:49.6]} 20. Bxd4 {[%clk 0:01:42]} 20... h6 {[%clk
0:00:24.5]} 21. Kg2 {[%clk 0:01:37.1]} 21... Be6 {[%clk 0:00:20.3]} 22. Re2
{[%clk 0:01:29.5]} 22... Qd7 {[%clk 0:00:20.4]} 23. g4 {[%clk 0:01:10.8]} 23...
a6 {[%clk 0:00:19.6]} 24. Rae1 {[%clk 0:01:10.7]} 24... f6 {[%clk 0:00:19.1]}
25. Bg6 {[%clk 0:00:47.4]} 25... Bf7 {[%clk 0:00:19.4]} 26. Rxe8 {[%clk
0:00:40.6]} 26... Rxe8 {[%clk 0:00:19.7]} 27. Rxe8+ {[%clk 0:00:40.6]} 27...
Qxe8 {[%clk 0:00:19.6]} 28. Bd3 {[%clk 0:00:38.5]} 28... Qc6 {[%clk 0:00:18.2]}
29. Qf5 {[%clk 0:00:36.6]} 29... Kf8 {[%clk 0:00:16.9]} 30. Qh7 {[%clk
0:00:35.5]} 30... Be5 {[%clk 0:00:17.2]} 31. Qh8+ {[%clk 0:00:35.3]} 31... Bg8
{[%clk 0:00:17.6]} 32. Bh7 {[%clk 0:00:34.1]} 32... Qe6 {[%clk 0:00:17.7]} 33.
Bc5+ {[%clk 0:00:30.7]} 33... Ke8 {[%clk 0:00:18.2]} 34. Qxg8+ {[%clk
0:00:30.6]} 34... Qxg8 {[%clk 0:00:18.1]} 35. Bxg8 {[%clk 0:00:31.5]} 35... Kd7
{[%clk 0:00:18.8]} 36. Bxd5 {[%clk 0:00:31.4]} 36... Bd6 {[%clk 0:00:19.1]} 37.
Bxd6 {[%clk 0:00:29.3]} 37... Kxd6 {[%clk 0:00:20]} 38. Bxb7 {[%clk 0:00:28.5]}
38... a5 {[%clk 0:00:20.9]} 39. Kf3 {[%clk 0:00:28.4]} 39... Kc7 {[%clk
0:00:21.8]} 40. Be4 {[%clk 0:00:28.5]} 40... Kd6 {[%clk 0:00:22.4]} 41. Ke3
{[%clk 0:00:28.9]} 41... Ke5 {[%clk 0:00:23.1]} 42. f4+ {[%clk 0:00:28.9]} 42...
Kd6 {[%clk 0:00:24]} 43. Kd4 {[%clk 0:00:29.8]} 43... Kc7 {[%clk 0:00:24.7]} 44.
c4 {[%clk 0:00:30.2]} 44... Kb6 {[%clk 0:00:25.6]} 45. c5+ {[%clk 0:00:30.6]}
45... Kb5 {[%clk 0:00:26.4]} 46. c6 {[%clk 0:00:30.5]} 46... Kb4 {[%clk
0:00:27.3]} 47. c7 {[%clk 0:00:30.7]} 47... a4 {[%clk 0:00:27.3]} 48. c8=Q
{[%clk 0:00:31]} 48... a3 {[%clk 0:00:28.2]} 49. Qc5+ {[%clk 0:00:31]} 49... Ka4
{[%clk 0:00:28.5]} 50. Bc6# {[%clk 0:00:31.9]} 1-0

[Event "*** SCC Grand Prix: Titled Tuesday Blitz"]
[Site "Chess.com"]
[Date "2020.07.21"]
[Round "2"]
[White "reutik"]
[Black "AlexTriapishko"]
[Result "0-1"]
[WhiteElo "2325"]
[BlackElo "2630"]
[TimeControl "180+1"]
[EndTime "10:17:35 PDT"]
[Termination "AlexTriapishko won on time"]

1. d4 {[%clk 0:03:00.9]} 1... Nf6 {[%clk 0:02:50.1]} 2. c4 {[%clk 0:03:01]} 2...
g6 {[%clk 0:02:50.1]} 3. f3 {[%clk 0:03:01]} 3... Nh5 {[%clk 0:02:35.5]} 4. Nc3
{[%clk 0:02:40.5]} 4... e5 {[%clk 0:02:32.6]} 5. g3 {[%clk 0:02:30]} 5... exd4
{[%clk 0:02:30.6]} 6. Qxd4 {[%clk 0:02:30.1]} 6... Bg7 {[%clk 0:02:30.9]} 7. Qd2
{[%clk 0:02:22.8]} 7... O-O {[%clk 0:02:28.4]} 8. b3 {[%clk 0:02:18.8]} 8... Nc6
{[%clk 0:02:14.5]} 9. Bb2 {[%clk 0:02:18.6]} 9... d6 {[%clk 0:02:15.1]} 10. Nh3
{[%clk 0:02:15.9]} 10... Re8 {[%clk 0:02:02.1]} 11. Bg2 {[%clk 0:02:04]} 11...
Nd4 {[%clk 0:01:49.3]} 12. O-O {[%clk 0:01:47.4]} 12... Bxh3 {[%clk 0:00:54.3]}
13. Bxh3 {[%clk 0:01:47.1]} 13... Qe7 {[%clk 0:00:33.1]} 14. e4 {[%clk 0:01:32]}
14... c6 {[%clk 0:00:23.1]} 15. Rae1 {[%clk 0:01:18]} 15... g5 {[%clk
0:00:16.1]} 16. Nd5 {[%clk 0:00:53]} 16... cxd5 {[%clk 0:00:14.6]} 17. Bxd4
{[%clk 0:00:52.6]} 17... dxc4 {[%clk 0:00:10.2]} 18. bxc4 {[%clk 0:00:46.8]}
18... Bxd4+ {[%clk 0:00:09.1]} 19. Qxd4 {[%clk 0:00:46.5]} 19... Qe5 {[%clk
0:00:10]} 20. Qxe5 {[%clk 0:00:43.6]} 20... Rxe5 {[%clk 0:00:09]} 21. Rd1 {[%clk
0:00:43.2]} 21... Rd8 {[%clk 0:00:09.5]} 22. Rd4 {[%clk 0:00:36.9]} 22... Kf8
{[%clk 0:00:09.3]} 23. Rb1 {[%clk 0:00:32.4]} 23... b6 {[%clk 0:00:08.9]} 24.
Rb5 {[%clk 0:00:31.3]} 24... Ke7 {[%clk 0:00:05.6]} 25. Kf2 {[%clk 0:00:25.6]}
25... Nf6 {[%clk 0:00:04.4]} 26. Ke3 {[%clk 0:00:17.9]} 26... Rc5 {[%clk
0:00:03.5]} 27. Kd3 {[%clk 0:00:14.4]} 27... h6 {[%clk 0:00:03]} 28. Bf5 {[%clk
0:00:07.3]} 28... Ne8 {[%clk 0:00:03.2]} 0-1